[Event "Titled Tuesday Blitz March 08 Early 2022"]
[White "Sailer, Mike"]
[Black "Kaganskiy, Gleb"]
[WhiteFideId "2012901"]
[BlackFideId "4132025"]
[WhiteElo "2109"]
[BlackElo "2165"]
[Result "1-0"]
[Round "08"]
[TimeControl "180+1"]
[Date "2022.03.09"]
[WhiteClock "0:00:37"]
[BlackClock "0:01:20"]

1. d4 {[%clk 0:03:00]}  Nf6 {[%clk 0:02:59]} 2. Nf3 {[%clk 0:02:59]}  d5 {[%clk 0:02:57]} 3. Bf4 {[%clk 0:03:00]}  c5 {[%clk 0:02:57]} 4. e3 {[%clk 0:03:00]}  Nc6 {[%clk 0:02:57]} 5. Nc3 {[%clk 0:03:01]}  a6 {[%clk 0:02:56]} 6. Be2 {[%clk 0:03:00]}  cxd4 {[%clk 0:02:56]} 7. exd4 {[%clk 0:03:00]}  Bg4 {[%clk 0:02:57]} 8. h3 {[%clk 0:03:01]}  Bh5 {[%clk 0:02:56]} 9. O-O {[%clk 0:03:01]}  e6 {[%clk 0:02:57]} 10. Ne5 {[%clk 0:03:01]}  Bxe2 {[%clk 0:02:55]} 11. Nxe2 {[%clk 0:03:02]}  Bd6 {[%clk 0:02:49]} 12. Nxc6 {[%clk 0:03:01]}  bxc6 {[%clk 0:02:48]} 13. c3 {[%clk 0:02:56]}  O-O {[%clk 0:02:47]} 14. b4 {[%clk 0:02:52]}  Qc7 {[%clk 0:02:41]} 15. Bxd6 {[%clk 0:02:52]}  Qxd6 {[%clk 0:02:42]} 16. Nc1 {[%clk 0:02:51]}  a5 {[%clk 0:02:40]} 17. Nd3 {[%clk 0:02:50]}  axb4 {[%clk 0:02:39]} 18. cxb4 {[%clk 0:02:51]}  Ne4 {[%clk 0:02:36]} 19. Nc5 {[%clk 0:02:46]}  Nxc5 {[%clk 0:02:33]} 20. dxc5 {[%clk 0:02:37]}  Qf4 {[%clk 0:02:33]} 21. Qb3 {[%clk 0:02:33]}  e5 {[%clk 0:02:27]} 22. a4 {[%clk 0:02:31]}  e4 {[%clk 0:02:26]} 23. b5 {[%clk 0:02:23]}  Qe5 {[%clk 0:02:13]} 24. b6 {[%clk 0:02:13]}  f5 {[%clk 0:02:12]} 25. a5 {[%clk 0:02:13]}  Ra6 {[%clk 0:02:06]} 26. Qa4 {[%clk 0:01:58]}  Qf6 {[%clk 0:02:04]} 27. Rab1 {[%clk 0:01:55]}  f4 {[%clk 0:01:56]} 28. b7 {[%clk 0:01:53]}  Rb8 {[%clk 0:01:56]} 29. Rb3 {[%clk 0:01:46]}  f3 {[%clk 0:01:55]} 30. g3 {[%clk 0:01:40]}  d4 {[%clk 0:01:43]} 31. Qc4+ {[%clk 0:01:35]}  Kh8 {[%clk 0:01:40]} 32. Qxa6 {[%clk 0:01:34]}  Qe6 {[%clk 0:01:40]} 33. Qa8 {[%clk 0:01:30]}  Rg8 {[%clk 0:01:39]} 34. a6 {[%clk 0:01:26]}  Qxh3 {[%clk 0:01:40]} 35. Qxg8+ {[%clk 0:01:24]}  Kxg8 {[%clk 0:01:41]} 36. b8=Q+ {[%clk 0:01:23]}  Kf7 {[%clk 0:01:41]} 37. Qf4+ {[%clk 0:00:49]}  Kg6 {[%clk 0:01:21]} 38. Qxe4+ {[%clk 0:00:46]}  Kh6 {[%clk 0:01:21]} 39. Qh4+ {[%clk 0:00:37]}  Qxh4 {[%clk 0:01:20]} 40. gxh4 {[%clk 0:00:37]} 1-0


[Site "https://www.chess.com"]

[Event "Titled Tuesday Blitz March 08 Early 2022"]
[White "Samant Aditya S"]
[Black "Vasquez Schroeder, Rodrigo"]
[WhiteFideId "35080580"]
[BlackFideId "3400042"]
[WhiteElo "1916"]
[BlackElo "2561"]
[Result "0-1"]
[Round "08"]
[TimeControl "180+1"]
[Date "2022.03.08"]
[WhiteClock "0:00:04"]
[BlackClock "0:01:03"]

1. e4 {[%clk 0:03:00]}  c6 {[%clk 0:02:56]} 2. d4 {[%clk 0:03:00]}  d5 {[%clk 0:02:56]} 3. Nc3 {[%clk 0:03:00]}  dxe4 {[%clk 0:02:54]} 4. Nxe4 {[%clk 0:03:01]}  Nd7 {[%clk 0:02:55]} 5. Nf3 {[%clk 0:02:57]}  Ngf6 {[%clk 0:02:55]} 6. Ned2 {[%clk 0:02:58]}  e6 {[%clk 0:02:53]} 7. g3 {[%clk 0:02:57]}  b6 {[%clk 0:02:53]} 8. Bg2 {[%clk 0:02:57]}  Bb7 {[%clk 0:02:54]} 9. O-O {[%clk 0:02:56]}  c5 {[%clk 0:02:54]} 10. Nc4 {[%clk 0:02:51]}  Be7 {[%clk 0:02:52]} 11. dxc5 {[%clk 0:01:50]}  Nxc5 {[%clk 0:02:46]} 12. Qe2 {[%clk 0:01:49]}  Nd5 {[%clk 0:02:38]} 13. Rd1 {[%clk 0:01:44]}  Qc7 {[%clk 0:02:38]} 14. Nce5 {[%clk 0:01:38]}  O-O {[%clk 0:02:37]} 15. c4 {[%clk 0:01:38]}  Nf6 {[%clk 0:02:37]} 16. Bf4 {[%clk 0:01:36]}  Qc8 {[%clk 0:02:29]} 17. Rac1 {[%clk 0:01:17]}  Rd8 {[%clk 0:02:19]} 18. Rxd8+ {[%clk 0:01:15]}  Bxd8 {[%clk 0:02:19]} 19. Nd4 {[%clk 0:01:11]}  Nce4 {[%clk 0:02:16]} 20. Nb5 {[%clk 0:00:29]}  Be7 {[%clk 0:02:12]} 21. Nd3 {[%clk 0:00:24]}  a6 {[%clk 0:02:10]} 22. Nc3 {[%clk 0:00:20]}  Nxc3 {[%clk 0:02:09]} 23. Rxc3 {[%clk 0:00:21]}  Bxg2 {[%clk 0:02:08]} 24. Kxg2 {[%clk 0:00:22]}  Ra7 {[%clk 0:02:02]} 25. Ne5 {[%clk 0:00:22]}  h6 {[%clk 0:02:00]} 26. Rd3 {[%clk 0:00:21]}  Nd7 {[%clk 0:01:56]} 27. Rxd7 {[%clk 0:00:16]}  Rxd7 {[%clk 0:01:55]} 28. Nxd7 {[%clk 0:00:17]}  Qxd7 {[%clk 0:01:56]} 29. Qe4 {[%clk 0:00:18]}  Qc8 {[%clk 0:01:55]} 30. b3 {[%clk 0:00:17]}  b5 {[%clk 0:01:54]} 31. Be3 {[%clk 0:00:17]}  bxc4 {[%clk 0:01:52]} 32. bxc4 {[%clk 0:00:16]}  Bb4 {[%clk 0:01:44]} 33. h4 {[%clk 0:00:16]}  h5 {[%clk 0:01:42]} 34. Kh2 {[%clk 0:00:13]}  a5 {[%clk 0:01:40]} 35. c5 {[%clk 0:00:11]}  Qc7 {[%clk 0:01:36]} 36. c6 {[%clk 0:00:11]}  Bd6 {[%clk 0:01:35]} 37. Qc4 {[%clk 0:00:10]}  Qb8 {[%clk 0:01:33]} 38. Qa6 {[%clk 0:00:09]}  Bc7 {[%clk 0:01:26]} 39. Ba7 {[%clk 0:00:07]}  Qd8 {[%clk 0:01:26]} 40. Kg2 {[%clk 0:00:05]}  Qd5+ {[%clk 0:01:26]} 41. Kh2 {[%clk 0:00:05]}  Qd8 {[%clk 0:01:24]} 42. Kg2 {[%clk 0:00:05]}  Kh7 {[%clk 0:01:23]} 43. Qb7 {[%clk 0:00:05]}  g6 {[%clk 0:01:18]} 44. Be3 {[%clk 0:00:05]}  e5 {[%clk 0:01:17]} 45. a4 {[%clk 0:00:05]}  Kg7 {[%clk 0:01:16]} 46. Kh2 {[%clk 0:00:06]}  f6 {[%clk 0:01:16]} 47. Kg2 {[%clk 0:00:06]}  Kg8 {[%clk 0:01:14]} 48. Qb3+ {[%clk 0:00:06]}  Kf8 {[%clk 0:01:14]} 49. Qb7 {[%clk 0:00:07]}  Ke8 {[%clk 0:01:13]} 50. Qb3 {[%clk 0:00:07]}  Kf8 {[%clk 0:01:12]} 51. Bc5+ {[%clk 0:00:06]}  Kg7 {[%clk 0:01:12]} 52. Be3 {[%clk 0:00:04]}  Qd6 {[%clk 0:01:10]} 53. Qb7 {[%clk 0:00:04]}  Kg8 {[%clk 0:01:09]} 54. Kh2 {[%clk 0:00:05]}  Qd8 {[%clk 0:01:07]} 55. Kg2 {[%clk 0:00:05]}  Kf8 {[%clk 0:01:05]} 56. Bc5+ {[%clk 0:00:04]}  Ke8 {[%clk 0:01:04]} 57. Be3 {[%clk 0:00:05]}  Qd6 {[%clk 0:01:03]} 58. Qc8+ {[%clk 0:00:02]}  Ke7 {[%clk 0:01:03]} 59. Bc5 {[%clk 0:00:02]}  Qxc5 {[%clk 0:01:03]} 60. Qxc7+ {[%clk 0:00:02]}  Kf8 {[%clk 0:01:04]} 61. Qd7 {[%clk 0:00:03]}  Qe7 {[%clk 0:01:03]} 62. c7 {[%clk 0:00:04]}  Qxd7 {[%clk 0:01:03]} 0-1


[Site "https://www.chess.com"]

[Event "Titled Tuesday Blitz March 08 Early 2022"]
[White "Shkapenko, Pavel"]
[Black "Chigaev, Maksim"]
[WhiteFideId "4151933"]
[BlackFideId "4108116"]
[WhiteElo "2386"]
[BlackElo "2502"]
[Result "1/2-1/2"]
[Round "08"]
[TimeControl "180+1"]
[Date "2022.03.08"]
[WhiteClock "0:00:41"]
[BlackClock "0:00:21"]

1. e4 {[%clk 0:03:00]}  c5 {[%clk 0:02:58]} 2. c3 {[%clk 0:03:00]}  d5 {[%clk 0:02:58]} 3. exd5 {[%clk 0:03:00]}  Nf6 {[%clk 0:02:59]} 4. d4 {[%clk 0:03:00]}  Nxd5 {[%clk 0:02:59]} 5. dxc5 {[%clk 0:02:54]}  e6 {[%clk 0:02:55]} 6. a3 {[%clk 0:02:47]}  Bxc5 {[%clk 0:02:53]} 7. b4 {[%clk 0:02:43]}  Be7 {[%clk 0:02:47]} 8. c4 {[%clk 0:02:42]}  Nf6 {[%clk 0:02:34]} 9. Qxd8+ {[%clk 0:02:41]}  Bxd8 {[%clk 0:02:35]} 10. Nc3 {[%clk 0:02:41]}  b6 {[%clk 0:02:32]} 11. Nb5 {[%clk 0:02:36]}  O-O {[%clk 0:02:31]} 12. Bf4 {[%clk 0:02:31]}  e5 {[%clk 0:02:24]} 13. Be3 {[%clk 0:02:30]}  Bd7 {[%clk 0:02:00]} 14. Nf3 {[%clk 0:02:25]}  Bxb5 {[%clk 0:02:00]} 15. cxb5 {[%clk 0:02:25]}  Nbd7 {[%clk 0:02:01]} 16. Be2 {[%clk 0:02:25]}  Nd5 {[%clk 0:01:50]} 17. O-O {[%clk 0:02:02]}  Nxe3 {[%clk 0:01:47]} 18. fxe3 {[%clk 0:02:01]}  e4 {[%clk 0:01:31]} 19. Nd2 {[%clk 0:01:42]}  Bg5 {[%clk 0:01:27]} 20. Nxe4 {[%clk 0:01:40]}  Bxe3+ {[%clk 0:01:26]} 21. Kh1 {[%clk 0:01:41]}  Ne5 {[%clk 0:01:23]} 22. Nd6 {[%clk 0:01:33]}  Rad8 {[%clk 0:01:14]} 23. Rad1 {[%clk 0:01:31]}  g6 {[%clk 0:00:52]} 24. Nc4 {[%clk 0:01:21]}  Rxd1 {[%clk 0:00:50]} 25. Rxd1 {[%clk 0:01:21]}  Nxc4 {[%clk 0:00:50]} 26. Bxc4 {[%clk 0:01:22]}  Rc8 {[%clk 0:00:47]} 27. Bd5 {[%clk 0:01:19]}  Kg7 {[%clk 0:00:34]} 28. Bc6 {[%clk 0:01:16]}  Rc7 {[%clk 0:00:31]} 29. g3 {[%clk 0:01:09]}  h5 {[%clk 0:00:29]} 30. Kg2 {[%clk 0:01:09]}  Bg5 {[%clk 0:00:29]} 31. a4 {[%clk 0:01:00]}  Re7 {[%clk 0:00:18]} 32. Rd7 {[%clk 0:00:47]}  Rxd7 {[%clk 0:00:17]} 33. Bxd7 {[%clk 0:00:46]}  h4 {[%clk 0:00:14]} 34. a5 {[%clk 0:00:45]}  hxg3 {[%clk 0:00:12]} 35. hxg3 {[%clk 0:00:45]}  Bd2 {[%clk 0:00:11]} 36. axb6 {[%clk 0:00:45]}  axb6 {[%clk 0:00:12]} 37. Kf3 {[%clk 0:00:45]}  Bxb4 {[%clk 0:00:13]} 38. Bc6 {[%clk 0:00:45]}  Kf6 {[%clk 0:00:13]} 39. g4 {[%clk 0:00:40]}  Kg5 {[%clk 0:00:12]} 40. Be8 {[%clk 0:00:40]}  f6 {[%clk 0:00:12]} 41. Bf7 {[%clk 0:00:40]}  Bc5 {[%clk 0:00:13]} 42. Be8 {[%clk 0:00:40]}  Bd4 {[%clk 0:00:12]} 43. Bf7 {[%clk 0:00:40]}  f5 {[%clk 0:00:13]} 44. gxf5 {[%clk 0:00:40]}  Kxf5 {[%clk 0:00:14]} 45. Be8 {[%clk 0:00:39]}  g5 {[%clk 0:00:14]} 46. Bd7+ {[%clk 0:00:39]}  Ke5 {[%clk 0:00:15]} 47. Kg4 {[%clk 0:00:40]}  Be3 {[%clk 0:00:16]} 48. Bc6 {[%clk 0:00:40]}  Bf4 {[%clk 0:00:17]} 49. Bd7 {[%clk 0:00:39]}  Kd6 {[%clk 0:00:17]} 50. Bc6 {[%clk 0:00:40]}  Kc5 {[%clk 0:00:18]} 51. Kf3 {[%clk 0:00:40]}  Kd6 {[%clk 0:00:19]} 52. Kg4 {[%clk 0:00:40]}  Kc5 {[%clk 0:00:20]} 53. Kf3 {[%clk 0:00:41]}  Kd6 {[%clk 0:00:21]} 54. Kg4 {[%clk 0:00:41]} 1/2-1/2


[Site "https://www.chess.com"]

[Event "Titled Tuesday Blitz March 08 Early 2022"]
[White "Shubenkova, Veronika"]
[Black "Coelho, Ramyres Santana"]
[WhiteFideId "44124040"]
[BlackFideId "2120690"]
[WhiteElo "1938"]
[BlackElo "1888"]
[Result "1-0"]
[Round "08"]
[TimeControl "180+1"]
[Date "2022.03.09"]
[WhiteClock "0:01:36"]
[BlackClock "0:00:41"]

1. e4 {[%clk 0:03:00]}  c5 {[%clk 0:02:59]} 2. Nc3 {[%clk 0:03:00]}  e6 {[%clk 0:02:57]} 3. g3 {[%clk 0:02:58]}  a6 {[%clk 0:02:55]} 4. Bg2 {[%clk 0:02:57]}  Nc6 {[%clk 0:02:54]} 5. f4 {[%clk 0:02:57]}  d6 {[%clk 0:02:52]} 6. Nf3 {[%clk 0:02:56]}  Nf6 {[%clk 0:02:53]} 7. d3 {[%clk 0:02:56]}  b5 {[%clk 0:02:53]} 8. Be3 {[%clk 0:02:56]}  b4 {[%clk 0:02:54]} 9. Ne2 {[%clk 0:02:57]}  Ng4 {[%clk 0:02:54]} 10. Bg1 {[%clk 0:02:54]}  Be7 {[%clk 0:02:54]} 11. h3 {[%clk 0:02:53]}  Nf6 {[%clk 0:02:54]} 12. Bf2 {[%clk 0:02:51]}  O-O {[%clk 0:02:54]} 13. O-O {[%clk 0:02:51]}  d5 {[%clk 0:02:55]} 14. e5 {[%clk 0:02:51]}  Nd7 {[%clk 0:02:55]} 15. g4 {[%clk 0:02:47]}  f6 {[%clk 0:02:54]} 16. d4 {[%clk 0:02:42]}  cxd4 {[%clk 0:02:49]} 17. Nfxd4 {[%clk 0:02:42]}  Nxd4 {[%clk 0:02:49]} 18. Bxd4 {[%clk 0:02:38]}  fxe5 {[%clk 0:02:48]} 19. fxe5 {[%clk 0:02:36]}  Rxf1+ {[%clk 0:02:48]} 20. Qxf1 {[%clk 0:02:37]}  Bc5 {[%clk 0:02:46]} 21. Qf2 {[%clk 0:02:37]}  Bxd4 {[%clk 0:02:45]} 22. Qxd4 {[%clk 0:02:36]}  Qg5 {[%clk 0:02:41]} 23. Bxd5 {[%clk 0:02:31]}  Nxe5 {[%clk 0:02:25]} 24. Bxa8 {[%clk 0:02:29]}  h5 {[%clk 0:02:10]} 25. Rd1 {[%clk 0:02:23]}  Kh7 {[%clk 0:02:07]} 26. Be4+ {[%clk 0:02:22]}  Kh6 {[%clk 0:02:05]} 27. Qd2 {[%clk 0:02:21]}  hxg4 {[%clk 0:01:57]} 28. Qxg5+ {[%clk 0:02:14]}  Kxg5 {[%clk 0:01:58]} 29. hxg4 {[%clk 0:02:14]}  a5 {[%clk 0:01:49]} 30. Nd4 {[%clk 0:02:10]}  Kf4 {[%clk 0:01:45]} 31. Bg2 {[%clk 0:02:09]}  Nxg4 {[%clk 0:01:44]} 32. Rf1+ {[%clk 0:02:06]}  Ke3 {[%clk 0:01:38]} 33. Nc6 {[%clk 0:02:00]}  Ba6 {[%clk 0:01:36]} 34. Rf7 {[%clk 0:01:56]}  g5 {[%clk 0:01:28]} 35. Nxa5 {[%clk 0:01:53]}  e5 {[%clk 0:01:26]} 36. c3 {[%clk 0:01:49]}  bxc3 {[%clk 0:01:25]} 37. bxc3 {[%clk 0:01:50]}  Be2 {[%clk 0:01:24]} 38. Nc6 {[%clk 0:01:46]}  e4 {[%clk 0:01:21]} 39. Bf1 {[%clk 0:01:45]}  Bf3 {[%clk 0:01:21]} 40. Nd4 {[%clk 0:01:45]}  Ne5 {[%clk 0:01:08]} 41. Rf5 {[%clk 0:01:44]}  Nd3 {[%clk 0:00:52]} 42. Bxd3 {[%clk 0:01:40]}  g4 {[%clk 0:00:49]} 43. Bf1 {[%clk 0:01:39]}  g3 {[%clk 0:00:49]} 44. a4 {[%clk 0:01:39]}  Kd2 {[%clk 0:00:46]} 45. Nxf3+ {[%clk 0:01:38]}  Kd1 {[%clk 0:00:45]} 46. a5 {[%clk 0:01:37]}  e3 {[%clk 0:00:45]} 47. a6 {[%clk 0:01:37]}  g2 {[%clk 0:00:45]} 48. Bxg2 {[%clk 0:01:35]}  e2 {[%clk 0:00:44]} 49. a7 {[%clk 0:01:35]}  e1=Q+ {[%clk 0:00:41]} 50. Nxe1 {[%clk 0:01:36]} 1-0


[Site "https://www.chess.com"]

[Event "Titled Tuesday Blitz March 08 Early 2022"]
[White "Shyaamnikhil P"]
[Black "Jacobson, Aaron"]
[WhiteFideId "5024218"]
[BlackFideId "2089912"]
[WhiteElo "2329"]
[BlackElo "2265"]
[Result "1-0"]
[Round "08"]
[TimeControl "180+1"]
[Date "2022.03.09"]
[WhiteClock "0:01:15"]
[BlackClock "0:00:04"]

1. e4 {[%clk 0:03:00]}  f5 {[%clk 0:02:54]} 2. exf5 {[%clk 0:02:58]}  Nf6 {[%clk 0:02:54]} 3. d4 {[%clk 0:02:54]}  d5 {[%clk 0:02:55]} 4. Bd3 {[%clk 0:02:52]}  c5 {[%clk 0:02:55]} 5. c3 {[%clk 0:02:52]}  e6 {[%clk 0:02:56]} 6. fxe6 {[%clk 0:02:52]}  Bd6 {[%clk 0:02:56]} 7. Nf3 {[%clk 0:02:50]}  O-O {[%clk 0:02:57]} 8. Ng5 {[%clk 0:02:45]}  h6 {[%clk 0:02:46]} 9. Nf7 {[%clk 0:02:44]}  Qe7 {[%clk 0:02:47]} 10. Nxd6 {[%clk 0:02:43]}  Qxe6+ {[%clk 0:02:47]} 11. Qe2 {[%clk 0:02:43]}  Qxd6 {[%clk 0:02:47]} 12. O-O {[%clk 0:02:38]}  cxd4 {[%clk 0:02:25]} 13. cxd4 {[%clk 0:02:36]}  Nc6 {[%clk 0:02:25]} 14. f3 {[%clk 0:02:22]}  Nxd4 {[%clk 0:01:40]} 15. Qd1 {[%clk 0:02:18]}  Bf5 {[%clk 0:01:31]} 16. Be3 {[%clk 0:02:13]}  Bxd3 {[%clk 0:01:29]} 17. Qxd3 {[%clk 0:02:14]}  Nc6 {[%clk 0:01:29]} 18. Nc3 {[%clk 0:02:12]}  Rfe8 {[%clk 0:01:01]} 19. Bf2 {[%clk 0:02:09]}  a6 {[%clk 0:00:52]} 20. Rae1 {[%clk 0:02:05]}  Rad8 {[%clk 0:00:52]} 21. Rxe8+ {[%clk 0:02:02]}  Rxe8 {[%clk 0:00:53]} 22. Rd1 {[%clk 0:02:02]}  Qb4 {[%clk 0:00:18]} 23. Nxd5 {[%clk 0:01:59]}  Qxb2 {[%clk 0:00:14]} 24. Rb1 {[%clk 0:01:52]}  Qe5 {[%clk 0:00:12]} 25. Nxf6+ {[%clk 0:01:51]}  Qxf6 {[%clk 0:00:12]} 26. Rxb7 {[%clk 0:01:50]}  Ne5 {[%clk 0:00:09]} 27. Qd5+ {[%clk 0:01:47]}  Kh8 {[%clk 0:00:10]} 28. Rb1 {[%clk 0:01:43]}  Rd8 {[%clk 0:00:07]} 29. Qe4 {[%clk 0:01:41]}  Nd3 {[%clk 0:00:07]} 30. Rd1 {[%clk 0:01:39]}  Qc3 {[%clk 0:00:06]} 31. Qe3 {[%clk 0:01:33]}  Qc2 {[%clk 0:00:06]} 32. Qd2 {[%clk 0:01:33]}  Qc4 {[%clk 0:00:03]} 33. h4 {[%clk 0:01:26]}  a5 {[%clk 0:00:04]} 34. Qxa5 {[%clk 0:01:23]}  Rd7 {[%clk 0:00:03]} 35. Qa8+ {[%clk 0:01:21]}  Kh7 {[%clk 0:00:03]} 36. Qe4+ {[%clk 0:01:22]}  Qxe4 {[%clk 0:00:04]} 37. fxe4 {[%clk 0:01:23]}  Kg6 {[%clk 0:00:04]} 38. a4 {[%clk 0:01:21]}  Kf6 {[%clk 0:00:04]} 39. a5 {[%clk 0:01:21]}  Ke5 {[%clk 0:00:04]} 40. a6 {[%clk 0:01:21]}  Kxe4 {[%clk 0:00:04]} 41. a7 {[%clk 0:01:21]}  Rd8 {[%clk 0:00:05]} 42. Rb1 {[%clk 0:01:19]}  Nxf2 {[%clk 0:00:01]} 43. Rb8 {[%clk 0:01:18]}  Rd2 {[%clk 0:00:01]} 44. a8=Q+ {[%clk 0:01:17]}  Kf4 {[%clk 0:00:02]} 45. Qf3+ {[%clk 0:01:16]}  Ke5 {[%clk 0:00:02]} 46. Re8+ {[%clk 0:01:15]}  Kd4 {[%clk 0:00:03]} 47. Rd8+ {[%clk 0:01:15]}  Kc5 {[%clk 0:00:04]} 48. Rxd2 {[%clk 0:01:15]} 1-0


[Site "https://www.chess.com"]

[Event "Titled Tuesday Blitz March 08 Early 2022"]
[White "Stefanov, Plamen"]
[Black "Piliczewski, Bogusz"]
[WhiteFideId "2900980"]
[BlackFideId "1104144"]
[WhiteElo "2137"]
[BlackElo "1896"]
[Result "0-1"]
[Round "08"]
[TimeControl "180+1"]
[Date "2022.03.09"]
[WhiteClock "0:00:08"]
[BlackClock "0:00:31"]

1. e4 {[%clk 0:03:00]}  c6 {[%clk 0:02:59]} 2. Nf3 {[%clk 0:02:58]}  d5 {[%clk 0:02:59]} 3. e5 {[%clk 0:02:58]}  Bg4 {[%clk 0:02:57]} 4. d4 {[%clk 0:02:54]}  e6 {[%clk 0:02:57]} 5. Be2 {[%clk 0:02:49]}  c5 {[%clk 0:02:56]} 6. c3 {[%clk 0:02:48]}  Nc6 {[%clk 0:02:55]} 7. O-O {[%clk 0:02:47]}  Rc8 {[%clk 0:02:49]} 8. dxc5 {[%clk 0:02:41]}  Bxc5 {[%clk 0:02:48]} 9. Nd4 {[%clk 0:02:39]}  Bxe2 {[%clk 0:02:40]} 10. Nxc6 {[%clk 0:02:13]}  Bxd1 {[%clk 0:02:39]} 11. Nxd8 {[%clk 0:02:12]}  Be2 {[%clk 0:02:39]} 12. Re1 {[%clk 0:02:10]}  Ba6 {[%clk 0:02:38]} 13. Nxf7 {[%clk 0:02:00]}  Kxf7 {[%clk 0:02:37]} 14. a4 {[%clk 0:01:53]}  b6 {[%clk 0:02:30]} 15. b4 {[%clk 0:01:50]}  Be7 {[%clk 0:02:24]} 16. b5 {[%clk 0:01:49]}  Bb7 {[%clk 0:02:23]} 17. a5 {[%clk 0:01:50]}  bxa5 {[%clk 0:02:20]} 18. Rxa5 {[%clk 0:01:49]}  Bc5 {[%clk 0:02:20]} 19. Be3 {[%clk 0:01:49]}  Bb6 {[%clk 0:02:05]} 20. Bxb6 {[%clk 0:01:48]}  axb6 {[%clk 0:02:05]} 21. Ra7 {[%clk 0:01:49]}  Rc7 {[%clk 0:02:04]} 22. Nd2 {[%clk 0:01:39]}  Ne7 {[%clk 0:02:04]} 23. Nb3 {[%clk 0:01:38]}  Ra8 {[%clk 0:02:01]} 24. Rxa8 {[%clk 0:01:34]}  Bxa8 {[%clk 0:02:00]} 25. Ra1 {[%clk 0:01:33]}  Bb7 {[%clk 0:01:58]} 26. Nd4 {[%clk 0:01:13]}  Rxc3 {[%clk 0:01:49]} 27. f4 {[%clk 0:01:13]}  Nc8 {[%clk 0:01:40]} 28. Kf2 {[%clk 0:01:09]}  Rc4 {[%clk 0:01:37]} 29. Ke3 {[%clk 0:01:07]}  Ke7 {[%clk 0:01:20]} 30. Kd3 {[%clk 0:01:01]}  Kd7 {[%clk 0:01:20]} 31. g4 {[%clk 0:01:01]}  g6 {[%clk 0:01:13]} 32. h4 {[%clk 0:00:36]}  Rc5 {[%clk 0:01:04]} 33. Rh1 {[%clk 0:00:29]}  Ne7 {[%clk 0:01:00]} 34. h5 {[%clk 0:00:29]}  Rc8 {[%clk 0:00:59]} 35. hxg6 {[%clk 0:00:28]}  hxg6 {[%clk 0:00:55]} 36. Rh7 {[%clk 0:00:27]}  Rf8 {[%clk 0:00:53]} 37. Ke3 {[%clk 0:00:19]}  Bc8 {[%clk 0:00:53]} 38. Nc6 {[%clk 0:00:17]}  Re8 {[%clk 0:00:48]} 39. Kd4 {[%clk 0:00:12]}  Bb7 {[%clk 0:00:47]} 40. f5 {[%clk 0:00:09]}  gxf5 {[%clk 0:00:46]} 41. gxf5 {[%clk 0:00:08]}  exf5 {[%clk 0:00:46]} 42. e6+ {[%clk 0:00:03]}  Kxe6 {[%clk 0:00:45]} 43. Rh6+ {[%clk 0:00:03]}  Kd7 {[%clk 0:00:44]} 44. Rh7 {[%clk 0:00:02]}  Bxc6 {[%clk 0:00:42]} 45. bxc6+ {[%clk 0:00:02]}  Kxc6 {[%clk 0:00:42]} 46. Ke5 {[%clk 0:00:02]}  Nc8+ {[%clk 0:00:38]} 47. Kxf5 {[%clk 0:00:01]}  Nd6+ {[%clk 0:00:37]} 48. Kf4 {[%clk 0:00:01]}  Re4+ {[%clk 0:00:36]} 49. Kf3 {[%clk 0:00:01]}  b5 {[%clk 0:00:35]} 50. Kf2 {[%clk 0:00:01]}  b4 {[%clk 0:00:35]} 51. Rh3 {[%clk 0:00:01]}  Kc5 {[%clk 0:00:35]} 52. Rb3 {[%clk 0:00:02]}  Kc4 {[%clk 0:00:34]} 53. Rb1 {[%clk 0:00:02]}  b3 {[%clk 0:00:34]} 54. Rc1+ {[%clk 0:00:03]}  Kb4 {[%clk 0:00:34]} 55. Rb1 {[%clk 0:00:04]}  Nc4 {[%clk 0:00:32]} 56. Ra1 {[%clk 0:00:05]}  b2 {[%clk 0:00:32]} 57. Rb1 {[%clk 0:00:05]}  Kc3 {[%clk 0:00:32]} 58. Kf3 {[%clk 0:00:05]}  Kc2 {[%clk 0:00:31]} 59. Rxb2+ {[%clk 0:00:06]}  Kxb2 {[%clk 0:00:31]} 60. Kg3 {[%clk 0:00:05]}  Kc3 {[%clk 0:00:31]} 61. Kh3 {[%clk 0:00:06]}  Kd3 {[%clk 0:00:31]} 62. Kg3 {[%clk 0:00:07]}  Ke3 {[%clk 0:00:31]} 63. Kh3 {[%clk 0:00:08]}  Kf2 {[%clk 0:00:31]} 0-1


[Site "https://www.chess.com"]

[Event "Titled Tuesday Blitz March 08 Early 2022"]
[White "Suarez Uriel, Adrian"]
[Black "Bures, Vit"]
[WhiteFideId "22230874"]
[BlackFideId "309052"]
[WhiteElo "2316"]
[BlackElo "2118"]
[Result "0-1"]
[Round "08"]
[TimeControl "180+1"]
[Date "2022.03.09"]
[WhiteClock "0:00:35"]
[BlackClock "0:00:05"]

1. d4 {[%clk 0:03:00]}  d5 {[%clk 0:02:59]} 2. Nf3 {[%clk 0:02:59]}  Nf6 {[%clk 0:02:58]} 3. c4 {[%clk 0:02:59]}  c6 {[%clk 0:02:58]} 4. Nc3 {[%clk 0:02:58]}  e6 {[%clk 0:02:57]} 5. e3 {[%clk 0:02:55]}  Nbd7 {[%clk 0:02:57]} 6. Bd3 {[%clk 0:02:52]}  dxc4 {[%clk 0:02:57]} 7. Bxc4 {[%clk 0:02:53]}  b5 {[%clk 0:02:57]} 8. Bd3 {[%clk 0:02:54]}  Bd6 {[%clk 0:02:57]} 9. e4 {[%clk 0:02:53]}  e5 {[%clk 0:02:57]} 10. O-O {[%clk 0:02:53]}  O-O {[%clk 0:02:57]} 11. Bg5 {[%clk 0:02:52]}  h6 {[%clk 0:02:54]} 12. Bh4 {[%clk 0:02:51]}  Re8 {[%clk 0:02:47]} 13. Qc2 {[%clk 0:02:48]}  Bb7 {[%clk 0:02:43]} 14. Rad1 {[%clk 0:02:45]}  Qc7 {[%clk 0:02:15]} 15. a3 {[%clk 0:02:41]}  exd4 {[%clk 0:02:11]} 16. Nxd4 {[%clk 0:02:40]}  Bxh2+ {[%clk 0:02:10]} 17. Kh1 {[%clk 0:02:40]}  Be5 {[%clk 0:02:06]} 18. Nf3 {[%clk 0:02:29]}  Bd6 {[%clk 0:01:35]} 19. Be2 {[%clk 0:02:16]}  a6 {[%clk 0:01:24]} 20. Nd4 {[%clk 0:02:07]}  Be5 {[%clk 0:01:14]} 21. Nf5 {[%clk 0:02:05]}  c5 {[%clk 0:01:10]} 22. Nd5 {[%clk 0:01:55]}  Bxd5 {[%clk 0:00:55]} 23. exd5 {[%clk 0:01:55]}  c4 {[%clk 0:00:53]} 24. Bf3 {[%clk 0:01:52]}  Nc5 {[%clk 0:00:46]} 25. d6 {[%clk 0:01:50]}  Qd7 {[%clk 0:00:41]} 26. Bxa8 {[%clk 0:01:48]}  Rxa8 {[%clk 0:00:41]} 27. Rfe1 {[%clk 0:01:43]}  Nd3 {[%clk 0:00:39]} 28. Rxe5 {[%clk 0:01:34]}  Nxe5 {[%clk 0:00:38]} 29. Bxf6 {[%clk 0:01:33]}  gxf6 {[%clk 0:00:37]} 30. Nxh6+ {[%clk 0:01:25]}  Kh8 {[%clk 0:00:37]} 31. Qe2 {[%clk 0:01:17]}  Kg7 {[%clk 0:00:30]} 32. f4 {[%clk 0:01:03]}  Nd3 {[%clk 0:00:18]} 33. Qe7 {[%clk 0:00:45]}  Qxe7 {[%clk 0:00:09]} 34. Nf5+ {[%clk 0:00:44]}  Kh8 {[%clk 0:00:08]} 35. dxe7 {[%clk 0:00:43]}  Nf2+ {[%clk 0:00:08]} 36. Kg1 {[%clk 0:00:42]}  Nxd1 {[%clk 0:00:09]} 37. Nd6 {[%clk 0:00:41]}  Nxb2 {[%clk 0:00:10]} 38. Kf2 {[%clk 0:00:38]}  c3 {[%clk 0:00:09]} 39. Ke2 {[%clk 0:00:36]}  c2 {[%clk 0:00:07]} 40. Kd2 {[%clk 0:00:33]}  Nc4+ {[%clk 0:00:08]} 41. Nxc4 {[%clk 0:00:33]}  bxc4 {[%clk 0:00:08]} 42. Kxc2 {[%clk 0:00:34]}  Re8 {[%clk 0:00:08]} 43. Kc3 {[%clk 0:00:34]}  Rxe7 {[%clk 0:00:09]} 44. Kxc4 {[%clk 0:00:35]}  Re4+ {[%clk 0:00:05]} 0-1


[Site "https://www.chess.com"]